bitfinex-derivatives/quotes_BTCF0:USTF0_20251009
["timestamp","ask_amount","ask_price","bid_price","bid_amount"]
[1759982189467,0.13538017,122150.0,122140.0,1.16321839]
[1759982189764,0.13538017,122150.0,122140.0,1.64143799]
[1759982192273,0.13538017,122150.0,122140.0,1.16321839]
[1759982192672,0.13538017,122150.0,122140.0,1.64143799]
[1759982193874,0.13538017,122150.0,122140.0,1.48195009]
[1759982195173,0.13538017,122150.0,122140.0,1.12115009]
[1759982195370,0.13538017,122150.0,122140.0,1.48195009]
[1759982197672,0.13538017,122150.0,122140.0,0.74275009]
[1759982197973,0.13538017,122150.0,122140.0,1.48191009]
[1759982202174,0.03201937,122150.0,122140.0,1.48191009]
[1759982202481,0.01835937,122150.0,122140.0,0.74275009]
[1759982202878,0.01835937,122150.0,122140.0,1.48191009]
[1759982203573,0.01835937,122150.0,122140.0,1.48491009]
[1759982204872,0.01835937,122150.0,122140.0,0.74575009]
[1759982205085,0.01835937,122150.0,122140.0,1.48491009]
[1759982205282,0.01835937,122150.0,122140.0,1.55017297]
[1759982206983,0.01835937,122150.0,122140.0,0.81101297]
[1759982207284,0.01835937,122150.0,122140.0,1.55013297]
[1759982207972,0.1160436,122160.0,122150.0,0.0818501]
[1759982208174,0.1344219,122160.0,122150.0,0.4005818]
[1759982210184,0.1344219,122160.0,122150.0,1.1397018]
[1759982211784,0.1131919,122160.0,122150.0,1.1397018]
[1759982213180,0.1131919,122160.0,122150.0,0.4005818]
[1759982213580,0.1131919,122160.0,122150.0,1.1396618]
[1759982214387,0.1344219,122160.0,122150.0,0.4005818]
[1759982214587,0.1344219,122160.0,122150.0,1.1396618]
[1759982215583,0.1344219,122160.0,122150.0,1.5004618]
[1759982215787,0.1344219,122160.0,122150.0,0.7613818]
[1759982215989,0.1344219,122160.0,122150.0,1.5004618]
[1759982216389,0.1131919,122160.0,122150.0,1.5004618]
[1759982218690,0.1131919,122160.0,122150.0,0.7613818]
[1759982218888,0.1131919,122160.0,122150.0,1.5004618]
[1759982219987,0.1131919,122160.0,122150.0,1.1817301]
[1759982220190,0.1131919,122160.0,122150.0,1.5004618]
[1759982222090,0.1131919,122160.0,122150.0,1.1396618]
[1759982222290,0.1131919,122160.0,122150.0,1.5004618]
[1759982223192,0.1131919,122160.0,122150.0,0.7613818]
[1759982223490,0.1344219,122160.0,122150.0,1.5004618]
[1759982227592,0.0313483,122160.0,122150.0,1.5004618]
[1759982229293,0.0313483,122160.0,122150.0,0.7613818]
[1759982229489,0.0313483,122160.0,122150.0,1.5004218]
[1759982229698,0.0183783,122160.0,122150.0,1.9004218]
[1759982230187,0.0183783,122160.0,122150.0,1.1613818]
[1759982230384,0.0183783,122160.0,122150.0,1.9004218]
[1759982231893,0.0314783,122160.0,122150.0,1.9004218]
[1759982234396,0.0314783,122160.0,122150.0,2.1683218]
[1759982234790,0.0314783,122160.0,122150.0,4.2131218]
[1759982235188,0.0314783,122160.0,122150.0,1.4292818]
[1759982235393,0.0314783,122160.0,122150.0,2.1682818]
[1759982235595,0.0314783,122160.0,122150.0,1.4292818]
[1759982235894,0.0314783,122160.0,122150.0,2.1682818]
[1759982236691,0.0314783,122160.0,122150.0,1.9003818]
[1759982237796,0.0314783,122160.0,122150.0,0.8426501]
[1759982237998,0.0314783,122160.0,122150.0,1.9003818]
[1759982242090,0.0131,122160.0,122150.0,1.9003818]
[1759982242796,0.05443596,122160.0,122150.0,1.9003818]
[1759982243097,0.13627936,122160.0,122150.0,0.3608]
[1759982243301,0.13627936,122160.0,122150.0,0.8208101]
[1759982244900,0.13627936,122160.0,122150.0,1.1395418]
[1759982247204,0.13627936,122160.0,122150.0,0.4005818]
[1759982247398,0.13627936,122160.0,122150.0,1.1395418]
[1759982253809,0.13627936,122160.0,122150.0,1.1395018]
[1759982254409,0.13627936,122160.0,122150.0,0.4005818]
[1759982254711,0.13627936,122160.0,122150.0,1.1395018]
[1759982255911,0.37531305,122160.0,122150.0,1.05980379]
[1759982256809,0.37531305,122160.0,122150.0,0.32088379]
[1759982257011,0.37531305,122160.0,122150.0,1.05980379]
[1759982257413,0.0818501,122150.0,122140.0,0.4426501]
[1759982257713,0.05320873,122150.0,122140.0,1.65963748]
[1759982258113,0.13505883,122150.0,122140.0,1.65963748]
[1759982260113,0.05320873,122150.0,122140.0,1.65963748]
[1759982261708,0.05320873,122150.0,122140.0,0.92071748]
[1759982261913,0.05320873,122150.0,122140.0,1.65963748]
[1759982262417,0.05320873,122150.0,122140.0,0.92071748]
[1759982262612,0.05320873,122150.0,122140.0,1.65963748]
[1759982268425,0.05320873,122150.0,122140.0,1.1815701]
[1759982268623,0.05320873,122150.0,122140.0,1.65963748]
[1759982268824,0.05320873,122150.0,122140.0,0.92071748]
[1759982269025,0.05320873,122150.0,122140.0,1.65963748]
[1759982271828,0.03478,122150.0,122140.0,1.65963748]
[1759982278238,0.05320633,122150.0,122140.0,1.65963748]
[1759982278736,0.03478,122150.0,122140.0,1.65963748]
[1759982281739,0.01343,122150.0,122140.0,1.65963748]
[1759982281930,0.01343,122150.0,122140.0,0.92071748]
[1759982282134,0.01343,122150.0,122140.0,1.65963748]
[1759982284231,0.01343,122150.0,122140.0,1.38667437]
[1759982284432,0.01343,122150.0,122140.0,2.12559437]
[1759982284836,0.01343,122150.0,122140.0,2.39349437]
[1759982285241,0.01343,122150.0,122140.0,1.65457437]
[1759982285436,0.0318621,122150.0,122140.0,2.39349437]
[1759982286938,0.0318621,122150.0,122140.0,2.39449437]
[1759982287235,0.0318621,122150.0,122140.0,2.39649437]
[1759982287441,0.03187008,122150.0,122140.0,1.65757437]
[1759982287642,0.03187008,122150.0,122140.0,2.39649437]
[1759982292448,0.03187008,122150.0,122140.0,1.91842699]
[1759982292647,0.03187008,122150.0,122140.0,2.39649437]
[1759982293149,0.03187008,122150.0,122140.0,1.65757437]
[1759982293346,0.01844008,122150.0,122140.0,2.12859437]
[1759982294054,0.01844008,122150.0,122140.0,1.38967437]
[1759982294348,0.01844008,122150.0,122140.0,2.12855437]
[1759982295550,0.01844008,122150.0,122140.0,1.62870806]
[1759982295752,0.01844008,122150.0,122140.0,2.36758806]
[1759982296152,0.01844008,122150.0,122140.0,2.12855437]
[1759982298047,0.0131,122160.0,122140.0,2.12855437]
[1759982298255,0.03149382,122160.0,122150.0,0.68168379]
[1759982298444,0.03149382,122160.0,122150.0,0.66304738]
[1759982301352,0.03149382,122160.0,122150.0,0.42401369]
[1759982301353,0.05282382,122160.0,122150.0,0.42401369]
[1759982301652,0.13466722,122160.0,122150.0,1.40192738]
[1759982301954,0.05282382,122160.0,122150.0,1.40192738]
[1759982305456,0.05282382,122160.0,122150.0,1.16289369]
[1759982305755,0.05282382,122160.0,122150.0,1.40192738]
[1759982306355,0.03149382,122160.0,122150.0,1.64096107]
[1759982306554,0.03149382,122160.0,122150.0,1.64092107]
[1759982307257,0.03149382,122160.0,122150.0,1.40188738]
[1759982307456,0.03149382,122160.0,122150.0,1.64092107]
[1759982308252,0.03149382,122160.0,122150.0,1.28012107]
[1759982308451,0.03149382,122160.0,122150.0,1.64092107]
[1759982309759,0.03149382,122160.0,122150.0,1.28012107]
[1759982309955,0.03149382,122160.0,122150.0,1.64092107]
[1759982311157,0.03149382,122160.0,122150.0,0.90208107]
[1759982311361,0.03149382,122160.0,122150.0,1.64092107]
[1759982312257,0.03149382,122160.0,122150.0,0.90208107]
[1759982312462,0.13466722,122160.0,122150.0,1.40188738]
[1759982312662,0.11333722,122160.0,122150.0,1.40188738]
[1759982314765,0.11333722,122160.0,122150.0,0.66304738]
[1759982314964,0.11333722,122160.0,122150.0,1.40188738]
[1759982315966,0.11333722,122160.0,122150.0,1.4815354]
[1759982319770,0.11333722,122160.0,122150.0,1.1207354]
[1759982319973,0.11333722,122160.0,122150.0,1.4815354]
[1759982323569,0.11333722,122160.0,122150.0,0.7426954]
[1759982323873,0.11333722,122160.0,122150.0,1.4814954]
[1759982323874,0.13627722,122160.0,122150.0,1.4814954]
[1759982324068,0.13627722,122160.0,122150.0,0.7426954]
[1759982324273,0.13627722,122160.0,122150.0,1.4814954]
[1759982326863,0.13627722,122160.0,122150.0,1.16281369]
[1759982327067,0.13627722,122160.0,122150.0,1.4814954]
[1759982327268,0.13627722,122160.0,122150.0,0.7426954]
[1759982327470,0.13627722,122160.0,122150.0,1.4814954]
[1759982331479,0.13627722,122160.0,122150.0,1.4814554]
[1759982332678,0.13627722,122160.0,122150.0,0.42401369]
[1759982332880,0.13627722,122160.0,122150.0,1.4814554]
[1759982333384,0.13625074,122160.0,122150.0,1.4814554]
[1759982335988,0.13625074,122160.0,122150.0,0.7426954]
[1759982336286,0.13625074,122160.0,122150.0,1.4814554]
[1759982336688,0.13625074,122160.0,122150.0,0.7426954]
[1759982337186,0.13625074,122160.0,122150.0,1.4814554]
[1759982337684,0.53625074,122160.0,122140.0,0.3608]
[1759982337890,0.037,122140.0,122130.0,2.4874218]
[1759982338081,0.037,122140.0,122130.0,3.54486351]
[1759982339080,0.037,122140.0,122130.0,3.54686351]
[1759982340586,0.037,122140.0,122130.0,3.54786351]
[1759982343188,0.1188568,122140.0,122130.0,3.54786351]
[1759982343984,0.037,122140.0,122130.0,3.54786351]
[1759982346587,0.037,122140.0,122130.0,3.2291818]
[1759982346793,0.037,122140.0,122130.0,3.54786351]
[1759982354205,0.037,122140.0,122130.0,3.18706351]
[1759982354406,0.037,122140.0,122130.0,3.54786351]
[1759982355404,0.037,122140.0,122130.0,3.2291818]
[1759982355607,0.037,122140.0,122130.0,3.54786351]
[1759982357409,0.037,122140.0,122130.0,3.18706351]
[1759982357601,0.01392,122140.0,122130.0,3.54786351]
[1759982360209,0.01392,122140.0,122130.0,3.2291818]
[1759982360507,0.01392,122140.0,122130.0,3.54786351]
[1759982361009,0.01392,122140.0,122130.0,3.18706351]
[1759982361210,0.01392,122140.0,122130.0,3.54786351]
[1759982362506,0.01392,122150.0,122140.0,0.0818568]
[1759982362701,0.01392,122150.0,122140.0,1.50009851]
[1759982362905,0.03281206,122150.0,122140.0,0.76133851]
[1759982363306,0.03281206,122150.0,122140.0,1.50009851]
[1759982365113,0.05612206,122150.0,122140.0,1.50009851]
[1759982365312,0.05612206,122150.0,122140.0,1.50209851]
[1759982365907,0.05612206,122150.0,122140.0,1.50309851]
[1759982368416,0.05612206,122150.0,122140.0,1.14229851]
[1759982368617,0.05612206,122150.0,122140.0,1.50309851]
[1759982372426,0.05612206,122150.0,122140.0,0.76433851]
[1759982372616,0.05612206,122150.0,122140.0,1.50309851]
[1759982373122,0.03281206,122150.0,122140.0,1.50309851]
[1759982373917,0.03281206,122150.0,122140.0,1.77099851]
[1759982375817,0.03281206,122150.0,122140.0,1.93037552]
[1759982377529,0.03281206,122150.0,122140.0,1.66247552]
[1759982378429,0.03281206,122150.0,122140.0,1.66243552]
[1759982385229,0.11466216,122150.0,122140.0,1.66243552]
[1759982386235,0.11466216,122150.0,122140.0,0.92371552]
[1759982386435,0.11466216,122150.0,122140.0,1.66243552]
[1759982388435,0.03281206,122150.0,122140.0,1.66243552]
[1759982389030,0.03281206,122150.0,122140.0,0.92371552]
[1759982389232,0.03281206,122150.0,122140.0,1.66243552]
[1759982391334,0.03281206,122150.0,122140.0,0.92371552]
[1759982391841,0.03281206,122150.0,122140.0,3.70739552]
[1759982396040,0.03281206,122150.0,122140.0,2.96867552]
[1759982396250,0.03281206,122150.0,122140.0,3.70735552]
[1759982397242,0.03281206,122150.0,122140.0,0.92371552]
[1759982397443,0.03281206,122150.0,122140.0,3.70735552]
[1759982401446,0.03281206,122150.0,122140.0,0.92371552]
[1759982401644,0.03281206,122150.0,122140.0,3.70731552]
[1759982402446,0.11466216,122150.0,122140.0,2.96863552]
[1759982402744,0.11466216,122150.0,122140.0,3.70731552]
[1759982403336,0.13677216,122150.0,122140.0,0.92371552]
[1759982403546,0.13677216,122150.0,122140.0,3.70731552]
[1759982404145,0.13677216,122150.0,122140.0,0.4456568]
[1759982404347,0.13677216,122150.0,122140.0,0.92371552]
[1759982404547,0.13677216,122150.0,122140.0,3.70731552]
[1759982405241,0.05492206,122150.0,122140.0,3.70731552]
[1759982405441,0.13677216,122150.0,122140.0,3.70731552]
[1759982406849,0.73660152,122150.0,122140.0,0.003]
[1759982407056,1.13660152,122150.0,122140.0,0.74168]
[1759982407346,1.13660152,122150.0,122140.0,0.98070936]
[1759982408249,1.13660152,122150.0,122140.0,0.97970936]
[1759982408449,1.13660152,122150.0,122140.0,0.74068]
[1759982408748,1.13660152,122150.0,122140.0,0.97970936]
[1759982409349,0.53677216,122150.0,122140.0,1.06156616]
[1759982409547,0.53677216,122150.0,122140.0,0.56191552]
[1759982409754,0.53677216,122150.0,122140.0,1.29855552]
[1759982409755,0.77580152,122150.0,122140.0,1.29855552]
[1759982410251,0.53677216,122150.0,122140.0,1.29855552]
[1759982412353,0.53677216,122150.0,122140.0,0.73864]
[1759982412653,0.1179968,122140.0,122130.0,2.4875796]
[1759982412855,0.13688886,122140.0,122130.0,3.2262196]
[1759982413954,0.13688886,122140.0,122130.0,3.46724896]
[1759982414153,0.13688886,122140.0,122130.0,0.68368896]
[1759982414455,0.13688886,122140.0,122130.0,3.14736]
[1759982414657,0.13688886,122140.0,122130.0,3.38638936]
[1759982414852,0.13688886,122140.0,122130.0,3.46825286]
[1759982416960,0.05503206,122140.0,122130.0,3.46825286]
[1759982417562,0.13688886,122140.0,122130.0,3.46825286]
[1759982418365,0.1179968,122140.0,122130.0,3.46825286]
[1759982419464,0.1179968,122140.0,122130.0,3.2292235]
[1759982419766,0.1179968,122140.0,122130.0,3.46825286]
[1759982420364,0.1179968,122140.0,122130.0,3.2292235]
[1759982420669,0.1179968,122140.0,122130.0,3.46825286]
[1759982422869,0.1179968,122140.0,122130.0,3.2292235]
[1759982423173,0.1179968,122140.0,122130.0,3.46825286]
[1759982423567,0.03614,122140.0,122130.0,3.46825286]
[1759982424673,0.1179968,122140.0,122130.0,3.2292235]
[1759982424871,0.1179968,122140.0,122130.0,3.46825286]
[1759982425572,0.03614,122140.0,122130.0,3.46825286]
[1759982433177,0.03614,122140.0,122130.0,3.2292235]
[1759982433377,0.1179968,122140.0,122130.0,3.46825286]
[1759982433876,0.35702616,122140.0,122130.0,3.46825286]
[1759982434076,0.1179968,122140.0,122130.0,3.46825286]
[1759982435076,0.1179968,122140.0,122130.0,3.10745286]
[1759982435279,0.13686823,122140.0,122130.0,3.10745286]
[1759982435977,0.13686823,122140.0,122130.0,3.18723249]
[1759982437174,0.13686823,122140.0,122130.0,2.44859249]
[1759982437377,0.13686823,122140.0,122130.0,3.18723249]
[1759982437983,0.1179968,122140.0,122130.0,3.18723249]
[1759982438874,0.0132,122140.0,122130.0,3.18723249]
[1759982440676,0.0132,122140.0,122130.0,2.8684235]
[1759982440977,0.0132,122140.0,122130.0,3.18723249]
[1759982441682,0.0132,122140.0,122130.0,2.44859249]
[1759982441876,0.0132,122140.0,122130.0,3.18723249]
[1759982442479,0.0132,122140.0,122130.0,2.80939249]
[1759982442780,0.0132,122140.0,122130.0,3.54803249]
[1759982444385,0.01392,122150.0,122140.0,0.0818568]
[1759982444578,0.01392,122150.0,122140.0,1.50010579]
[1759982445080,0.0327594,122150.0,122140.0,1.50010579]
[1759982445581,0.01392,122150.0,122140.0,1.50010579]
[1759982445778,0.0131,122160.0,122150.0,0.0818501]
[1759982445980,0.03193599,122160.0,122150.0,0.76145909]
[1759982446282,0.03193599,122160.0,122150.0,1.50009909]
[1759982446986,0.0131,122160.0,122150.0,0.76145909]
[1759982447381,0.0131,122160.0,122150.0,1.50009909]
[1759982447886,0.0141,122160.0,122150.0,1.50009909]
[1759982449087,0.0141,122160.0,122150.0,0.76145909]
[1759982449290,0.0141,122160.0,122150.0,3.54501909]
[1759982449886,0.0131,122160.0,122150.0,3.54501909]
[1759982450591,0.0131,122160.0,122150.0,3.54497909]
[1759982450886,0.0131,122160.0,122150.0,0.76145909]
[1759982451284,0.0131,122160.0,122150.0,3.54493909]
[1759982455085,0.01297,122170.0,122160.0,0.0818434]
[1759982455291,0.01294,122180.0,122170.0,0.0818367]
[1759982455486,0.37374,122190.0,122180.0,0.08183]
[1759982455688,0.39254299,122190.0,122180.0,1.13927899]
[1759982455891,0.39254299,122190.0,122180.0,1.15137091]
[1759982456290,0.01294,122190.0,122180.0,1.15137091]
[1759982456490,0.03173448,122200.0,122190.0,0.0818233]
[1759982456686,0.01294,122200.0,122190.0,1.13927229]
[1759982457488,0.01294,122200.0,122190.0,0.40063229]
[1759982457689,0.01294,122200.0,122190.0,1.13927229]
[1759982457887,0.01294,122200.0,122190.0,0.40063229]
[1759982458292,0.03171022,122200.0,122190.0,3.18391229]
[1759982458788,0.03571022,122200.0,122190.0,3.18391229]
[1759982458983,0.02277022,122200.0,122190.0,2.80607229]
[1759982459189,0.004,122200.0,122190.0,2.80607229]
[1759982459491,0.004,122200.0,122190.0,3.54471229]
[1759982459692,0.39677,122220.0,122210.0,0.0818099]
[1759982459882,0.41552846,122220.0,122210.0,1.13925889]
[1759982460393,0.49733166,122220.0,122210.0,1.13925889]
[1759982460895,0.49933166,122220.0,122210.0,1.13933889]
[1759982461198,0.13853166,122220.0,122210.0,1.13933889]
[1759982463696,0.13853166,122220.0,122210.0,0.0818099]
[1759982463993,0.1164699,122210.0,122200.0,2.36312899]
[1759982464194,0.4772699,122210.0,122200.0,3.10176899]
[1759982464993,0.4772699,122210.0,122200.0,3.18358559]
[1759982465784,0.4782699,122210.0,122200.0,3.18358559]
[1759982466393,0.1174699,122210.0,122200.0,3.18358559]
[1759982467694,0.1174699,122210.0,122200.0,0.40062559]
[1759982468391,0.1174699,122210.0,122200.0,1.13926559]
[1759982471099,0.1174699,122210.0,122200.0,0.40062559]
[1759982471296,0.1174699,122210.0,122200.0,1.13918559]
[1759982473198,0.1361709,122210.0,122200.0,3.18322559]
[1759982473400,0.1174699,122210.0,122200.0,3.18322559]
[1759982474102,0.13617123,122210.0,122200.0,3.18322559]
[1759982476296,0.13617123,122210.0,122190.0,2.80542799]
[1759982476297,0.1164766,122200.0,122190.0,2.80542799]
[1759982476500,0.1164766,122200.0,122190.0,3.54394799]
[1759982476698,0.1164766,122200.0,122190.0,0.76142799]
[1759982477094,0.1164766,122200.0,122190.0,2.80542799]
[1759982477294,0.1164766,122200.0,122190.0,3.54394799]
[1759982477802,0.13519433,122200.0,122190.0,3.54394799]
[1759982478402,0.13519433,122200.0,122190.0,0.76142799]
[1759982478602,0.13519433,122200.0,122190.0,1.13914799]
[1759982479299,0.13519433,122200.0,122190.0,1.12051686]
[1759982480296,0.13519433,122200.0,122190.0,0.38199686]
[1759982480499,0.13519433,122200.0,122190.0,1.12051686]
[1759982482206,0.13519433,122200.0,122190.0,0.38199686]
[1759982482607,0.13519433,122200.0,122190.0,1.12051686]
[1759982482804,0.13519433,122200.0,122190.0,0.38199686]
[1759982483009,0.0950833,122190.0,122180.0,2.36284899]
[1759982483307,0.47460103,122190.0,122180.0,3.10136899]
[1759982484010,0.47460103,122190.0,122180.0,3.18319699]
[1759982484307,0.47460103,122190.0,122180.0,3.18419699]
[1759982484906,0.47460103,122190.0,122180.0,3.18319699]
[1759982485210,0.03197773,122190.0,122180.0,2.44467699]
[1759982485408,0.03197773,122190.0,122180.0,3.18319699]
[1759982486411,0.13520103,122190.0,122180.0,0.40063699]
[1759982486907,0.09509,122180.0,122170.0,2.04408]
[1759982487109,0.79341672,122180.0,122170.0,2.04408]
[1759982487303,0.1164967,122170.0,122160.0,0.40065019]
[1759982487608,0.03466,122160.0,122150.0,2.44473419]
[1759982487804,0.13522113,122160.0,122150.0,3.18353419]
[1759982489407,0.05337773,122160.0,122150.0,3.18353419]
[1759982489908,0.13522113,122160.0,122150.0,3.18353419]
[1759982491012,0.05337773,122160.0,122150.0,3.18353419]
[1759982492413,0.37406,122170.0,122160.0,0.0818434]
[1759982492607,0.03199353,122170.0,122160.0,0.71946138]
[1759982492908,0.03199353,122170.0,122160.0,2.21942138]
[1759982493109,0.03199353,122170.0,122160.0,2.21946138]
[1759982493309,0.37406,122180.0,122170.0,0.0818367]
[1759982493513,0.39279163,122180.0,122170.0,0.40064569]
[1759982494112,0.03199163,122180.0,122170.0,1.13988569]
[1759982494313,0.37406,122190.0,122180.0,0.08183]
[1759982494513,0.39279035,122190.0,122180.0,0.40063899]
[1759982494713,0.39279035,122190.0,122180.0,1.13991899]
[1759982497319,0.47661365,122190.0,122180.0,1.13991899]
[1759982497513,0.49805365,122190.0,122180.0,0.08183]
[1759982497716,0.49805365,122190.0,122180.0,1.13987899]
[1759982497913,0.49805365,122190.0,122180.0,1.05998353]
[1759982498315,0.49605365,122190.0,122180.0,1.05998353]
[1759982498514,0.73496718,122190.0,122180.0,0.23891353]
[1759982498718,0.0951167,122170.0,122160.0,2.36511463]
[1759982498916,0.0951167,122170.0,122160.0,3.34326816]
[1759982501420,0.01328,122170.0,122160.0,0.55966816]
[1759982501623,0.01328,122170.0,122160.0,3.34338816]
[1759982501811,0.01328,122170.0,122160.0,0.55966816]
[1759982502114,0.01328,122170.0,122160.0,3.34342816]
[1759982502822,0.01328,122170.0,122160.0,0.55966816]
[1759982503222,0.01328,122170.0,122160.0,3.34342816]
[1759982504116,0.01328,122170.0,122160.0,3.70422816]
[1759982505919,0.1174234,122160.0,122150.0,2.487086]
[1759982506223,0.1174234,122160.0,122150.0,3.46539953]
[1759982506428,0.03558,122160.0,122150.0,3.46539953]
[1759982506621,0.1174234,122160.0,122150.0,0.32075953]
[1759982506922,0.1174234,122160.0,122150.0,1.06027953]
[1759982508326,0.13617294,122160.0,122150.0,1.06027953]
[1759982508733,0.13617294,122160.0,122150.0,0.821366]
[1759982508917,0.13617294,122160.0,122150.0,1.06027953]
[1759982511633,0.13617294,122160.0,122150.0,1.42107953]
[1759982511832,0.13617294,122160.0,122150.0,1.06027953]
[1759982515430,0.05432954,122160.0,122150.0,1.29919306]
[1759982515629,0.03260954,122160.0,122150.0,1.42095953]
[1759982518329,0.01386,122160.0,122150.0,1.42095953]
[1759982520937,0.0957034,122160.0,122150.0,1.42095953]
[1759982522638,0.01386,122160.0,122150.0,1.42095953]
[1759982526242,0.01386,122160.0,122150.0,1.182046]
[1759982526532,0.01386,122160.0,122150.0,1.42095953]
[1759982528242,0.03265505,122160.0,122150.0,1.42095953]
[1759982528637,0.03265505,122160.0,122150.0,0.68155953]
[1759982528842,0.05423505,122160.0,122150.0,1.65967306]
[1759982530237,0.1172834,122160.0,122150.0,1.65967306]
[1759982531043,0.13607978,122160.0,122150.0,1.65967306]
[1759982532447,0.13607978,122160.0,122150.0,1.42075953]
[1759982532744,0.37499331,122160.0,122150.0,3.10456363]
[1759982533345,0.37499331,122160.0,122150.0,0.32076363]
[1759982533645,0.37499331,122160.0,122150.0,1.05988363]
[1759982534146,0.13607978,122160.0,122150.0,1.05988363]
[1759982535348,0.13607978,122160.0,122150.0,0.8209701]
[1759982535648,0.13607978,122160.0,122150.0,1.05988363]
[1759982537748,0.13607978,122160.0,122150.0,0.32076363]
[1759982538348,0.37499331,122160.0,122150.0,1.05980363]
[1759982539351,0.13607978,122160.0,122150.0,1.05980363]
[1759982539650,0.37499331,122160.0,122150.0,1.05980363]
[1759982539850,0.13607978,122160.0,122150.0,1.05980363]
[1759982540553,0.13607978,122160.0,122150.0,0.8208901]
[1759982540744,0.13607978,122160.0,122140.0,0.25031905]
[1759982540745,0.1167801,122150.0,122140.0,0.25031905]
[1759982540944,0.37449809,122150.0,122140.0,2.37681375]
[1759982541145,0.37449809,122150.0,122140.0,3.11593375]
[1759982541648,0.13558456,122150.0,122140.0,3.35484728]
[1759982542150,0.1167801,122150.0,122140.0,3.35484728]
[1759982542949,0.1167801,122150.0,122140.0,3.35684728]
[1759982543352,0.03493,122150.0,122140.0,3.35684728]
[1759982543650,0.03493,122150.0,122140.0,3.35784728]
[1759982548453,0.05371708,122150.0,122140.0,3.35784728]
[1759982554955,0.05371708,122150.0,122140.0,2.61872728]
[1759982555154,0.05371708,122150.0,122140.0,3.35772728]
[1759982558448,0.03493,122150.0,122140.0,3.35772728]
[1759982559857,0.03493,122150.0,122140.0,3.19862225]
[1759982561660,0.03493,122150.0,122140.0,2.45962225]
[1759982561855,0.1167801,122150.0,122140.0,2.87982022]
[1759982562056,0.1167801,122150.0,122140.0,3.19854225]
[1759982562755,0.1167801,122150.0,122140.0,0.09626022]
[1759982562956,1.19630213,122150.0,122140.0,0.003]
[1759982563159,1.21504189,122150.0,122140.0,0.74196]
[1759982563355,1.21504189,122150.0,122140.0,0.0848568]
[1759982563655,1.21504189,122150.0,122140.0,0.742]
[1759982564058,0.89631986,122150.0,122140.0,0.8238568]
[1759982564260,1.21504189,122150.0,122140.0,0.8238568]
[1759982564957,1.21504189,122150.0,122140.0,0.742]
[1759982565159,1.21504189,122150.0,122140.0,0.003]
[1759982565359,1.21504189,122150.0,122140.0,0.74212]
[1759982565560,1.21504189,122150.0,122140.0,0.003]
[1759982565756,1.21504189,122150.0,122140.0,0.57712]
[1759982567965,1.21504189,122150.0,122140.0,0.003]
[1759982568264,1.21504189,122150.0,122140.0,0.8239368]
[1759982568458,1.21504189,122150.0,122140.0,0.74208]
[1759982568657,1.21504189,122150.0,122140.0,0.003]
[1759982568858,1.21504189,122150.0,122140.0,0.74208]
[1759982572666,0.85424189,122150.0,122140.0,0.74208]
[1759982572965,1.21504189,122150.0,122140.0,0.74208]
[1759982574969,1.21504189,122150.0,122140.0,0.74204]
[1759982579273,1.21501782,122150.0,122140.0,0.74204]
[1759982579873,1.21501782,122150.0,122140.0,0.0848568]
[1759982580073,1.21501782,122150.0,122140.0,0.8238968]
[1759982583773,1.21501782,122150.0,122140.0,0.74204]
[1759982586476,1.21501782,122150.0,122140.0,0.74196]
[1759982587472,0.0818568,122140.0,122130.0,0.0818616]
[1759982587776,0.81488452,122140.0,122130.0,0.8208616]
[1759982588776,0.81488452,122140.0,122130.0,0.8238616]
[1759982589177,0.81488452,122140.0,122130.0,0.8288616]
[1759982589879,0.81488452,122140.0,122130.0,0.0898635]
[1759982590082,0.81488452,122140.0,122130.0,0.74696]
[1759982590675,0.81488452,122140.0,122130.0,0.8288235]
[1759982591376,0.81488452,122140.0,122130.0,0.008]
[1759982591576,0.81488452,122140.0,122130.0,0.59492]
[1759982597778,0.81488452,122140.0,122130.0,0.008]
[1759982597982,0.81488452,122140.0,122130.0,0.747]
[1759982598778,0.81488452,122140.0,122130.0,0.008]
[1759982598984,0.81488452,122140.0,122130.0,0.58744]
[1759982600684,0.81488452,122140.0,122130.0,0.56879628]
[1759982601273,0.0128,122110.0,122100.0,2.12712576]
[1759982601473,0.33152203,122110.0,122100.0,2.12712576]
[1759982601676,0.03154364,122110.0,122100.0,2.86616576]
[1759982602279,0.35026567,122110.0,122100.0,2.86616576]
[1759982602491,0.45413257,122110.0,122100.0,0.08196576]
[1759982602783,0.81493257,122110.0,122100.0,0.73916396]
[1759982603574,0.1166736,122100.0,122080.0,0.41154343]
[1759982603775,0.1166803,122090.0,122080.0,0.0818948]
[1759982603977,0.1166803,122090.0,122080.0,0.8210548]
[1759982604378,0.1166871,122080.0,122070.0,0.0819034]
[1759982604582,0.0534617,122080.0,122070.0,1.13990543]
[1759982605380,0.0534617,122080.0,122070.0,0.8211834]
[1759982605585,0.0534617,122080.0,122070.0,1.13990543]
[1759982606485,0.0534617,122080.0,122070.0,0.8211834]
[1759982606678,0.0534617,122080.0,122070.0,1.13990543]
[1759982606880,0.03479,122070.0,122060.0,0.0819072]
[1759982607084,0.4142617,122070.0,122060.0,0.8212672]
[1759982607381,0.4961655,122070.0,122060.0,0.8212672]
[1759982607595,0.4961655,122070.0,122060.0,0.0819072]
[1759982607783,0.4961655,122070.0,122060.0,0.8212672]
[1759982608483,0.4774938,122070.0,122060.0,0.8212672]
[1759982608689,0.4774938,122070.0,122060.0,0.83179095]
[1759982609487,0.39559,122070.0,122060.0,0.83179095]
[1759982609688,0.3736,122070.0,122060.0,1.15051298]
[1759982609988,0.39559,122070.0,122060.0,1.15151298]
[1759982610188,0.4774938,122070.0,122060.0,1.15151298]
[1759982610488,0.4774938,122070.0,122060.0,0.8222672]
[1759982610679,0.4774938,122070.0,122060.0,1.14098923]
[1759982610885,0.4774938,122070.0,122060.0,0.8222672]
[1759982611086,0.4774938,122070.0,122060.0,1.14098923]
[1759982611288,0.79621583,122070.0,122060.0,0.0859072]
[1759982611487,0.4774938,122070.0,122060.0,0.8254672]
[1759982611692,0.4774938,122070.0,122060.0,0.83541281]
[1759982612189,0.4774938,122070.0,122060.0,0.8254672]
[1759982612885,0.79621583,122070.0,122060.0,0.004]
[1759982613083,0.79621583,122070.0,122060.0,0.74368]
[1759982614192,0.79621583,122070.0,122060.0,0.74068]
[1759982614695,0.79621583,122070.0,122060.0,0.8225905]
[1759982614892,0.79621583,122070.0,122060.0,0.8227105]
[1759982615194,0.79621583,122070.0,122060.0,0.8217105]
[1759982615495,0.80121583,122070.0,122060.0,0.8217105]
[1759982617191,0.80121583,122070.0,122060.0,0.0819105]
[1759982617395,0.1166805,122060.0,122050.0,0.4427109]
[1759982617687,0.1166805,122060.0,122050.0,1.1825109]
[1759982618992,0.1196805,122060.0,122050.0,1.1825109]
[1759982620194,0.1196805,122060.0,122050.0,1.1835109]
[1759982620583,0.1196805,122060.0,122050.0,0.4437109]
[1759982620790,0.43840253,122060.0,122050.0,0.8227971]
[1759982621290,0.79920253,122060.0,122050.0,0.74088]